bitfinex-derivatives/quotes_ETHF0:USTF0_20250616
["timestamp","ask_amount","ask_price","bid_price","bid_amount"]
[1750055244424,2.12132,2612.7,2612.6,1.5279441]
[1750055244820,0.76545,2612.6,2612.5,1.5279441]
[1750055245023,2.12135,2612.6,2612.5,1.5279441]
[1750055245924,4.40726248,2612.6,2612.5,1.5279441]
[1750055246125,0.76548,2612.5,2612.4,1.5279441]
[1750055246324,2.70678,2612.5,2612.3,2.2934741]
[1750055246525,8.97778,2612.5,2612.3,2.2934741]
[1750055247029,8.2123,2612.5,2612.3,2.2934741]
[1750055247517,8.9778,2612.5,2612.3,2.2934741]
[1750055247816,8.9778,2612.5,2612.4,1.5279441]
[1750055251228,0.76551,2612.4,2612.3,1.7946441]
[1750055251434,4.34012248,2612.4,2612.3,0.2667]
[1750055252731,0.76559,2612.1,2612.0,0.3412]
[1750055252940,7.02959,2612.1,2612.0,0.3412]
[1750055253640,9.31550248,2612.1,2612.0,0.3412]
[1750055253830,9.96290248,2612.1,2612.0,0.3412]
[1750055255536,0.76571,2611.7,2611.6,4.7357441]
[1750055255741,0.76571,2611.7,2611.6,3.2078]
[1750055256233,0.76571,2611.7,2611.6,3.97354]
[1750055256630,2.0974,2611.8,2611.7,0.76571]
[1750055256833,1.3317,2611.8,2611.7,0.76571]
[1750055257337,2.09738,2611.8,2611.7,0.76571]
[1750055257742,1.3317,2611.8,2611.7,0.76571]
[1750055258148,2.09738,2611.8,2611.7,0.76571]
[1750055259850,15.73152496,2611.8,2610.8,3.03424565]
[1750055260143,15.73152496,2611.8,2610.0,3.2078]
[1750055260144,5.49371248,2610.9,2610.0,3.2078]
[1750055260349,0.76607,2610.5,2610.1,40.8]
[1750055260543,0.76607,2610.5,2610.3,0.76611]
[1750055260744,0.76605,2610.6,2610.3,0.76611]
[1750055260947,0.6215,2610.8,2610.2,1.257]
[1750055261142,6.265,2610.8,2610.4,4.50816982]
[1750055261346,0.76601,2610.7,2610.5,2.02306]
[1750055261541,6.265,2611.2,2610.9,0.76594]
[1750055261750,6.265,2611.4,2610.9,3.2078]
[1750055261953,0.76587,2611.2,2610.9,3.97373]
[1750055262343,0.76591,2611.1,2610.9,3.2078]
[1750055262545,0.76591,2611.1,2610.9,5.0942]
[1750055262752,0.76592,2611.0,2610.9,5.0942]
[1750055263260,0.7659,2611.1,2610.9,5.0942]
[1750055264149,0.76592,2611.0,2610.9,5.0942]
[1750055264542,0.7659,2611.1,2610.9,5.0942]
[1750055264750,0.76592,2611.0,2610.9,5.0942]
[1750055265855,0.7659,2611.1,2610.9,5.0942]
[1750055266352,0.7659,2611.1,2611.0,0.10557712]
[1750055266951,0.76588,2611.2,2611.0,0.10557712]
[1750055267453,0.76588,2611.2,2611.1,0.10557712]
[1750055269548,0.76586,2611.2,2611.1,0.10557712]
[1750055271855,3.97365,2611.3,2611.1,0.10557712]
[1750055272055,6.267,2611.2,2611.1,0.87143712]
[1750055272243,3.97365,2611.3,2611.2,0.76586]
[1750055272450,10.24065,2611.3,2611.2,0.87143712]
[1750055272649,10.24065,2611.3,2611.2,0.10557712]
[1750055272849,10.24065,2611.3,2611.2,0.87143712]
[1750055273049,10.24065,2611.3,2611.2,0.10557712]
[1750055273352,7.03285,2611.3,2611.2,0.87143712]
[1750055273555,3.83503438,2611.6,2611.5,0.76577]
[1750055273751,3.21353438,2611.6,2611.2,3.31337712]
[1750055273951,3.97927438,2611.6,2611.3,1.2853]
[1750055274258,3.97927438,2611.6,2611.4,0.76578]
[1750055274461,3.97927438,2611.6,2611.5,0.87134712]
[1750055274756,3.97927438,2611.6,2611.5,0.10557712]
[1750055274952,3.97927438,2611.6,2611.5,0.87134712]
[1750055275152,3.97927438,2611.6,2611.5,0.10557712]
[1750055276255,0.77147438,2611.6,2611.5,0.10557712]
[1750055276557,0.77147438,2611.6,2611.5,0.87134712]
[1750055277862,0.00573438,2611.6,2611.5,0.87134712]
[1750055278059,0.77147438,2611.6,2611.5,0.87134712]
[1750055279164,0.00573438,2611.6,2611.5,0.87134712]
[1750055279763,30.023,2611.8,2611.7,0.76571]
[1750055280158,6.267,2611.8,2611.7,0.76571]
[1750055280655,6.267,2611.8,2611.7,0.87128712]
[1750055281061,2.05486614,2612.0,2611.9,0.76565]
[1750055281261,32.07086614,2612.0,2611.9,0.76565]
[1750055281466,31.30524614,2612.0,2611.9,0.87122712]
[1750055282166,32.07086614,2612.0,2611.9,0.87122712]
[1750055282860,32.07086614,2612.0,2611.9,0.10557712]
[1750055283264,32.07086614,2612.0,2611.9,0.87122712]
[1750055283963,1.28924614,2612.0,2611.9,0.87122712]
[1750055284162,31.30324614,2612.0,2611.9,0.87122712]
[1750055284468,32.06886614,2612.0,2611.9,0.87122712]
[1750055284665,32.06886614,2612.0,2611.9,0.10557712]
[1750055285562,32.06886614,2612.0,2611.9,0.87122712]
[1750055285765,2.05486614,2612.0,2611.9,0.87122712]
[1750055286066,32.06786614,2612.0,2611.9,0.87122712]
[1750055286268,31.30224614,2612.0,2611.9,0.87122712]
[1750055286969,32.59594614,2612.0,2611.9,0.87122712]
[1750055287165,33.36156614,2612.0,2611.9,0.87122712]
[1750055287466,32.59494614,2612.0,2611.9,0.87122712]
[1750055288765,33.36056614,2612.0,2611.9,0.87122712]
[1750055288967,32.59394614,2612.0,2611.9,0.87122712]
[1750055289365,33.35956614,2612.0,2611.9,0.87122712]
[1750055289568,33.35956614,2612.0,2611.9,0.10557712]
[1750055289870,33.35956614,2612.0,2611.9,0.87122712]
[1750055290067,32.59394614,2612.0,2611.9,0.87122712]
[1750055290261,33.35956614,2612.0,2611.9,0.87122712]
[1750055290861,9.60956614,2612.0,2611.9,0.87122712]
[1750055291069,33.35856614,2612.0,2611.9,0.87122712]
[1750055291367,32.59294614,2612.0,2611.9,0.87122712]
[1750055293566,8.84394614,2612.0,2611.9,0.87122712]
[1750055293871,32.59194614,2612.0,2611.9,0.87122712]
[1750055294463,2.58294614,2612.0,2611.9,0.87122712]
[1750055294971,32.59094614,2612.0,2611.9,0.87122712]
[1750055295570,2.58294614,2612.0,2611.9,0.87122712]
[1750055295868,32.59094614,2612.0,2611.9,0.87122712]
[1750055296168,33.35656614,2612.0,2611.9,0.87122712]
[1750055297168,33.35656614,2612.0,2611.9,0.10557712]
[1750055297570,33.35656614,2612.0,2611.9,0.87122712]
[1750055298169,33.35656614,2612.0,2611.9,0.10557712]
[1750055299369,33.35656614,2612.0,2611.9,0.87122712]
[1750055299769,33.35656614,2612.0,2611.9,0.10557712]
[1750055300165,33.35656614,2612.0,2611.9,0.87122712]
[1750055301969,32.59094614,2612.0,2611.9,0.87122712]
[1750055302864,33.35656614,2612.0,2611.9,0.87122712]
[1750055303066,32.59094614,2612.0,2611.9,0.87122712]
[1750055303369,33.35656614,2612.0,2611.9,0.87122712]
[1750055304371,32.59094614,2612.0,2611.9,0.87122712]
[1750055304568,33.35656614,2612.0,2611.9,0.87122712]
[1750055305272,32.58694614,2612.0,2611.9,0.87122712]
[1750055305672,0.65434614,2612.0,2611.9,0.87122712]
[1750055305970,30.65734614,2612.0,2611.9,1.99232712]
[1750055306368,0.65434614,2612.0,2611.9,1.99232712]
[1750055306767,30.65634614,2612.0,2611.9,1.99232712]
[1750055307169,6.91434614,2612.0,2611.9,1.99232712]
[1750055307469,30.65634614,2612.0,2611.9,1.99232712]
[1750055307670,0.65434614,2612.0,2611.9,1.99232712]
[1750055307866,30.65634614,2612.0,2611.9,1.99232712]
[1750055308069,30.00774614,2612.0,2611.9,1.99232712]
[1750055308971,0.00574614,2612.0,2611.9,1.99232712]
[1750055309271,23.74674614,2612.0,2611.9,1.99232712]
[1750055309973,0.00574614,2612.0,2611.9,1.99232712]
[1750055310174,23.74674614,2612.0,2611.9,1.99232712]
[1750055310371,0.00574614,2612.0,2611.9,1.99232712]
[1750055310576,23.74674614,2612.0,2611.9,1.99232712]
[1750055310770,26.79959945,2612.0,2611.9,1.22667712]
[1750055310971,28.04299945,2612.0,2611.9,1.22667712]
[1750055312180,0.76572,2611.7,2611.5,0.76576]
[1750055312380,26.64143331,2611.6,2611.5,0.76576]
[1750055314879,27.40717331,2611.6,2611.5,0.76576]
[1750055315180,26.64143331,2611.6,2611.5,0.76576]
[1750055318578,0.7658,2611.4,2611.3,40.80574614]
[1750055318776,0.7658,2611.4,2611.3,0.00574614]
[1750055318777,26.79203331,2611.4,2611.3,0.00574614]
[1750055323084,28.11613331,2611.4,2611.3,0.00574614]
[1750055324686,28.11613331,2611.4,2611.3,0.77157614]
[1750055324888,28.11613331,2611.4,2611.3,0.00574614]
[1750055326679,0.7658,2611.4,2611.3,0.00574614]
[1750055326880,30.7598,2611.4,2611.3,0.00574614]
[1750055327181,30.7588,2611.4,2611.3,0.00574614]
[1750055327381,7.02069,2611.8,2611.3,4.20753945]
[1750055327580,23.737,2611.7,2611.6,0.76573]
[1750055327981,24.50273,2611.7,2611.6,0.76573]
[1750055328288,24.50273,2611.7,2611.5,0.76576]
[1750055328490,23.737,2611.7,2611.6,0.76574]
[1750055328790,24.50271,2611.7,2611.6,0.76574]
[1750055329990,24.50271,2611.7,2611.5,0.76575]
[1750055330290,24.50271,2611.7,2611.6,0.76574]
[1750055330886,24.50271,2611.7,2611.4,1.9559]
[1750055331089,24.50271,2611.7,2611.5,0.76577]
[1750055331796,24.50271,2611.7,2611.6,0.76574]
[1750055333194,23.737,2611.7,2611.6,0.76574]
[1750055333395,24.50271,2611.7,2611.6,0.76574]
[1750055334494,24.50271,2611.7,2611.5,0.76575]
[1750055334899,24.50271,2611.7,2611.6,0.76574]
[1750055337003,25.74791,2611.7,2611.5,0.76575]
[1750055337604,25.74791,2611.7,2611.6,0.76574]
[1750055337904,25.74791,2611.7,2611.6,0.77878259]
[1750055338905,25.74791,2611.7,2611.6,0.01304259]
[1750055339206,0.73965482,2611.6,2611.5,0.76575]
[1750055339403,3.02688813,2611.6,2611.5,0.76575]
[1750055339605,0.7658,2611.4,2611.3,0.00574614]
[1750055339807,33.03803331,2611.4,2611.3,0.00574614]
[1750055340212,34.27823331,2611.4,2611.3,0.00574614]
[1750055342307,0.76587,2611.2,2611.0,0.7659]
[1750055342609,26.01523331,2611.1,2611.0,0.7659]
[1750055343307,7.54567331,2611.3,2611.1,0.76587]
[1750055343508,29.973,2611.2,2611.1,0.76587]
[1750055344410,30.73886,2611.2,2611.1,0.76587]
[1750055344909,29.973,2611.2,2611.1,0.76587]
[1750055345209,6.246,2611.2,2611.1,0.76587]
[1750055345512,29.974,2611.2,2611.1,0.76587]
[1750055347111,30.73986,2611.2,2611.1,0.76587]
[1750055347313,30.73986,2611.2,2610.9,44.0078]
[1750055347513,30.73986,2611.2,2611.0,0.76592]
[1750055347811,23.727,2611.1,2610.9,44.0078]
[1750055348011,23.727,2611.1,2611.0,0.76592]
[1750055348212,23.727,2611.1,2611.0,0.58506583]
[1750055352017,7.5528,2611.2,2611.1,0.76589]
[1750055352219,31.2778,2611.2,2611.1,0.76589]
[1750055352719,29.972,2611.2,2611.1,0.76589]
[1750055353717,29.972,2611.2,2611.1,3.81279778]
[1750055353921,29.972,2611.2,2611.1,0.76589]
[1750055354609,2.28723331,2611.3,2611.2,0.76586]
[1750055354917,0.93587225,2611.3,2611.2,0.76586]
[1750055355217,30.73684,2611.3,2611.1,0.76587]
[1750055355411,0.76586,2611.2,2611.0,1.3817]
[1750055356021,0.76586,2611.2,2611.1,0.76589]
[1750055356415,36.23188331,2611.3,2611.1,0.76589]
[1750055356620,37.50158331,2611.3,2611.1,0.76589]
[1750055356923,0.76586,2611.2,2611.1,0.76589]
[1750055357425,37.50158331,2611.3,2611.1,0.76589]
[1750055357622,33.52793331,2611.3,2611.0,0.7659]
[1750055357819,0.76588,2611.2,2611.0,0.7659]
[1750055358022,2.03558,2611.2,2611.1,0.76589]
[1750055358823,1.2697,2611.2,2611.1,0.76589]
[1750055359025,2.03556,2611.2,2611.1,0.76589]
[1750055361024,1.2697,2611.2,2611.1,0.76589]
[1750055361625,2.03556,2611.2,2611.1,0.76589]
[1750055362627,0.7659,2611.1,2611.0,0.7659]
[1750055362820,24.4859,2611.1,2611.0,0.7659]
[1750055363022,23.72,2611.1,2611.0,0.7659]
[1750055365824,24.65456129,2611.1,2611.0,0.76592]
[1750055366034,24.65356129,2611.1,2611.0,0.76592]
[1750055366521,23.717,2611.1,2611.0,0.76592]
[1750055367625,24.48289,2611.1,2611.0,0.76592]
[1750055367828,23.717,2611.1,2610.9,0.76595]
[1750055368130,24.4829,2611.1,2611.0,0.76592]
[1750055368431,25.42026704,2611.1,2611.0,0.76592]
[1750055369231,24.65436704,2611.1,2611.0,0.76592]
[1750055370122,0.93736704,2611.1,2611.0,0.76592]
[1750055370324,24.65236704,2611.1,2611.0,3.05560207]
[1750055372027,24.65236704,2611.1,2611.0,0.76592]
[1750055376328,0.93736704,2611.1,2611.0,0.76592]
[1750055376530,24.64936704,2611.1,2611.0,0.76592]
[1750055378137,3.2078,2611.6,2611.0,5.76592]
[1750055378327,23.709,2611.5,2611.2,2.28968207]
[1750055378533,0.76581,2611.4,2611.2,0.76584]
[1750055378734,2.72651,2611.4,2611.2,0.76584]
[1750055379439,2.72651,2611.4,2611.3,0.76583]
[1750055379640,1.9607,2611.4,2611.3,0.76583]
[1750055381041,2.7265,2611.4,2611.3,0.76583]
[1750055381845,1.9607,2611.4,2611.3,0.76583]
[1750055382340,0.6679,2611.4,2611.3,0.76583]
[1750055382541,30.6109,2611.4,2611.3,0.76583]
[1750055383041,31.3767,2611.4,2611.3,0.76583]
[1750055383241,34.31213331,2611.4,2611.2,0.76584]
[1750055383443,1.2697,2611.3,2611.2,0.76584]
[1750055383942,7.5521,2611.4,2611.3,0.76583]
[1750055384143,30.5892,2611.4,2611.3,0.76583]
[1750055384641,3.2078,2611.6,2611.5,0.76577]
[1750055384836,23.705,2611.6,2611.5,0.76577]
[1750055385027,23.705,2611.6,2611.5,3.97357]
[1750055385232,23.705,2611.6,2611.5,6.26325207]
[1750055385441,1.274,2611.8,2611.7,0.76571]
[1750055385627,31.214,2611.8,2611.7,0.76571]
[1750055386641,23.70874614,2612.0,2611.9,0.76565]
[1750055387042,23.70874614,2612.0,2611.9,41.56565]
[1750055392043,25.80356614,2612.0,2611.9,40.8]
[1750055392243,25.80356614,2612.0,2611.8,0.76567]
[1750055392244,28.09081945,2612.0,2611.8,0.76568]
[1750055392441,0.6306,2611.9,2611.8,0.76568]
[1750055392646,1.39625,2611.9,2611.8,40.8]
[1750055392846,5.93325,2611.9,2611.8,40.8]
[1750055393242,2.72545,2611.9,2611.8,40.8]
[1750055393444,3.65263098,2611.9,2611.8,40.8]
[1750055393639,3.65263098,2611.9,2611.5,0.76574]
[1750055393640,0.76572,2611.7,2611.5,0.76574]
[1750055393945,23.696,2611.6,2611.5,0.76574]
[1750055394139,25.79094,2611.6,2611.5,0.76574]
[1750055394449,25.79094,2611.6,2611.4,0.76578]
[1750055394647,0.6306,2611.5,2611.4,0.76578]
[1750055395851,29.929,2611.8,2611.5,1.91443]
[1750055396042,30.569,2611.8,2611.7,0.76571]
[1750055396947,6.24074614,2612.0,2611.9,0.76565]
[1750055397144,29.93374614,2612.0,2611.9,0.76565]
[1750055399955,0.00574614,2612.0,2611.9,0.76565]
[1750055400153,29.93274614,2612.0,2611.9,0.76565]
[1750055400646,29.93074614,2612.0,2611.9,0.76565]
[1750055401453,0.00574614,2612.0,2611.9,0.76565]
[1750055401748,29.92974614,2612.0,2611.9,6.26068331]
[1750055401955,29.92974614,2612.0,2611.9,3.97345]
[1750055403158,0.00574614,2612.0,2611.9,3.97345]
[1750055403355,29.91874614,2612.0,2611.9,3.97345]
[1750055405157,0.00574614,2612.0,2611.9,3.97345]
[1750055405451,29.91674614,2612.0,2611.9,3.97345]
[1750055405656,29.91674614,2612.0,2611.9,5.21665]
[1750055405961,0.00574614,2612.0,2611.9,5.89595]
[1750055409553,0.6318,2612.4,2612.3,0.76553]
[1750055409757,30.5388,2612.4,2612.3,3.97333]
[1750055410057,6.8548,2612.4,2612.3,3.97333]
[1750055410356,30.5378,2612.4,2612.3,3.97333]
[1750055410559,30.5368,2612.4,2612.3,3.97333]
[1750055411660,0.6318,2612.4,2612.3,3.97333]
[1750055411963,30.5368,2612.4,2612.3,3.97333]
[1750055414360,30.5338,2612.4,2612.3,3.97333]
[1750055415159,0.6318,2612.4,2612.3,3.97333]
[1750055415350,30.5338,2612.4,2612.3,3.97333]
[1750055415562,30.5328,2612.4,2612.3,3.97333]
[1750055416562,37.82003331,2612.4,2612.1,0.00574614]
[1750055416857,0.76577,2611.6,2611.2,0.76584]
[1750055417049,2.28723331,2611.3,2610.9,3.2078]
[1750055417253,0.7658,2611.4,2611.1,0.76588]
[1750055417457,2.0762,2611.4,2611.1,0.76588]
[1750055417651,1.3104,2611.4,2611.2,0.76585]
[1750055417859,0.6655,2611.5,2611.4,0.7658]
[1750055418064,30.83997223,2611.8,2611.4,2.28723331]
[1750055418261,0.93997223,2611.7,2611.3,0.6377]
[1750055418458,23.677,2611.7,2611.4,2.28723331]
[1750055418763,23.677,2611.7,2611.6,0.76574]
[1750055419060,0.76549,2612.5,2611.6,2.28723331]
[1750055419256,6.223,2612.4,2612.3,3.05277331]
[1750055419458,6.223,2612.4,2612.3,1.39344]
[1750055419650,0.00574614,2612.6,2612.3,42.19344]
[1750055419855,30.5387,2612.5,2612.4,0.76551]
[1750055420859,30.5387,2612.5,2612.3,42.19342]
[1750055421165,30.5387,2612.5,2612.4,0.76551]
[1750055421462,30.5387,2612.5,2612.3,42.19342]
[1750055422263,30.5387,2612.5,2612.4,0.76551]
[1750055422760,30.5387,2612.5,2612.3,42.19342]
[1750055424059,30.5387,2612.5,2612.4,0.76551]
[1750055424362,30.5357,2612.5,2612.4,0.76551]
[1750055424562,30.5357,2612.5,2612.3,41.4279]
[1750055424763,0.6367,2612.5,2612.4,0.76551]
[1750055425160,0.00574614,2612.6,2612.5,0.76548]
[1750055430574,0.00574614,2612.6,2612.5,3.97328]
[1750055430765,0.6695,2613.0,2612.9,0.76536]
[1750055430967,6.8391,2613.2,2613.1,0.7653]
[1750055430968,0.6171,2613.2,2613.1,0.7653]
[1750055431360,0.6695,2613.3,2613.2,0.76527]
[1750055431568,0.6695,2613.3,2613.2,3.97307]
[1750055431762,0.6695,2613.3,2613.2,4.64737]
[1750055431964,0.00574614,2613.5,2613.4,0.76521]
[1750055432268,0.67244614,2613.5,2613.4,0.76521]
[1750055432670,0.00574614,2613.5,2613.4,0.76521]
[1750055434371,1.30234614,2613.5,2613.4,0.76521]
[1750055435066,1.30234614,2613.5,2613.4,41.56521]
[1750055435263,1.30234614,2613.5,2613.4,40.8]
[1750055435468,29.96834614,2613.5,2613.0,0.00574614]
[1750055435669,0.76543,2612.7,2612.3,3.2078]
[1750055435970,3.05275331,2612.4,2611.9,3.2078]
[1750055436174,1.2966,2612.3,2612.1,0.76558]
[1750055436371,7.5106,2612.3,2612.1,0.76558]
[1750055436568,7.5106,2612.3,2611.9,3.97343]
[1750055436569,0.76557,2612.2,2611.9,3.97343]
[1750055436772,1.2966,2612.1,2611.6,44.0078]
[1750055436965,1.2618,2612.0,2611.8,0.76568]
[1750055437274,1.2966,2611.9,2611.7,0.76569]
[1750055437675,1.2966,2611.9,2611.6,44.0078]
[1750055437676,1.2966,2611.9,2611.8,0.76568]
[1750055437878,1.2966,2611.9,2611.7,0.7657]
[1750055438075,1.2966,2611.9,2611.7,0.76569]
[1750055438776,1.2966,2611.9,2611.6,44.77352]
[1750055439074,1.2966,2611.9,2611.7,0.76569]
[1750055439277,1.2966,2611.9,2611.8,0.76568]
[1750055439670,1.2966,2611.9,2611.6,44.0078]
[1750055440183,1.2966,2611.9,2611.8,0.76568]
[1750055444074,1.2618,2612.0,2611.9,0.76565]
[1750055444275,0.00574614,2612.1,2612.0,0.76562]
[1750055446277,0.6293,2612.6,2612.5,0.76548]
[1750055448777,0.00574614,2612.8,2612.7,0.76542]
[1750055451481,0.00574614,2612.8,2612.7,41.56542]
[1750055451683,0.77113614,2612.8,2612.7,40.8]
[1750055451981,2.09973614,2612.8,2612.7,40.8]
[1750055452777,1.33434614,2612.8,2612.3,0.00574614]
[1750055452983,0.76544,2612.7,2612.5,0.76548]
[1750055453177,1.2688,2612.6,2612.5,40.8]
[1750055453478,0.76551,2612.4,2612.3,0.00574614]
[1750055453980,0.76562,2612.0,2611.9,0.76563]
[1750055454183,4.4766,2612.3,2611.8,0.76567]
[1750055454376,12.63328,2612.4,2611.6,3.2078]
[1750055454377,0.7657,2611.8,2611.6,3.97353]
[1750055454679,1.8961,2611.9,2611.6,3.97353]
[1750055454680,1.8961,2611.9,2611.8,0.76568]
[1750055455074,2.66175,2611.9,2611.7,0.76569]
[1750055455274,0.76571,2611.7,2611.6,3.97354]
[1750055455681,0.76571,2611.7,2611.6,3.2078]
[1750055456083,0.76571,2611.7,2611.6,3.97354]
[1750055456282,0.7657,2611.8,2611.7,0.76571]
[1750055456587,2.0767,2611.8,2611.6,3.97352]
[1750055457087,2.0767,2611.8,2611.7,0.76571]
[1750055457887,1.311,2611.8,2611.7,0.76571]
[1750055458086,1.2831,2611.9,2611.8,0.76568]
[1750055458980,0.6273,2611.9,2611.8,0.76568]
[1750055459379,9.4238,2612.0,2611.9,0.76565]
[1750055459684,6.216,2612.3,2611.7,4.50445]
[1750055459990,3.87,2612.5,2612.4,0.76551]
[1750055461085,3.2078,2612.5,2612.4,0.76551]
[1750055462387,3.2078,2612.5,2612.3,0.76552]
[1750055462589,3.2078,2612.5,2612.4,0.76551]
[1750055462887,3.2078,2612.5,2612.1,40.8]
[1750055463082,1.3152,2612.4,2612.3,0.76554]
[1750055463688,3.2078,2612.5,2612.3,0.76554]
[1750055463991,4.523,2612.5,2612.0,0.6519]
[1750055464185,0.76555,2612.3,2612.1,0.76559]
[1750055464381,1.3152,2612.2,2611.9,40.8]
[1750055464589,2.08078,2612.2,2612.0,0.76561]
[1750055464890,8.29278,2612.2,2612.0,0.76561]
[1750055465388,0.76561,2612.1,2612.0,0.76562]
[1750055465588,1.2297,2612.1,2612.0,0.76562]
[1750055465987,0.7656,2612.1,2612.0,0.76562]
[1750055466390,9.4198,2612.2,2612.1,0.76559]
[1750055466588,9.4198,2612.2,2612.0,0.7656]
[1750055466789,10.18539,2612.2,2612.0,0.7656]
[1750055466985,10.18539,2612.2,2611.8,46.74]
[1750055466986,9.4198,2612.2,2611.9,0.76564]
[1750055467188,9.4198,2612.2,2611.8,5.94]
[1750055467489,0.76569,2611.8,2611.7,0.7657]
[1750055467790,6.212,2611.8,2611.7,0.7657]
[1750055467990,8.1554,2611.8,2611.7,0.7657]
[1750055468989,8.92108,2611.8,2611.7,0.7657]
[1750055469387,6.8471,2611.8,2611.7,0.7657]
[1750055470093,0.76561,2612.1,2611.5,1.91443]
[1750055470391,6.213,2612.0,2611.8,0.76567]
[1750055470588,6.213,2612.0,2611.9,0.76565]
[1750055470994,1.41704,2612.3,2611.7,1.91425]
[1750055471196,6.97857,2612.2,2612.0,0.76561]
[1750055471494,0.76563,2612.0,2611.8,0.76567]
[1750055471791,0.7656,2612.1,2611.9,0.76564]
[1750055471993,11.45488,2612.2,2612.0,0.76562]
[1750055472186,0.76559,2612.1,2611.7,2.0308]
[1750055472388,0.76559,2612.1,2611.9,0.76564]
[1750055472583,11.45488,2612.2,2612.0,0.76562]
[1750055472790,0.76559,2612.1,2611.9,0.76564]
[1750055473393,8.24708,2612.2,2612.0,0.76562]
[1750055473585,0.76559,2612.1,2611.9,0.76563]
[1750055474093,8.24708,2612.2,2612.0,0.76561]
[1750055474392,6.97861,2612.1,2611.9,0.76564]
[1750055474593,6.213,2612.1,2611.7,2.0308]
[1750055474890,6.213,2612.1,2611.7,0.6741]
[1750055475185,6.213,2612.1,2611.5,0.76574]
[1750055475186,0.76571,2611.7,2611.5,0.76574]
[1750055475585,0.6279,2611.8,2611.5,0.76574]
[1750055475791,0.76574,2611.6,2611.5,0.76574]
[1750055476093,1.9416,2611.8,2611.6,0.76574]
[1750055476391,0.76571,2611.7,2611.6,0.76574]
[1750055476597,2.7073,2611.8,2611.6,0.76574]
[1750055476796,2.7073,2611.8,2611.3,41.4132]
[1750055476985,1.9416,2611.8,2611.5,0.76577]
[1750055477186,0.76571,2611.7,2611.6,0.76573]
[1750055477389,1.9416,2611.8,2611.7,0.76571]
[1750055477692,2.70728,2611.8,2611.7,0.76571]
[1750055477893,1.39359,2611.8,2611.3,42.6485]
[1750055478092,1.39359,2611.8,2611.7,0.76571]
[1750055478795,0.6279,2611.8,2611.7,0.76571]
[1750055480096,3.97345,2611.9,2611.8,0.76568]
[1750055480390,0.76573,2611.7,2611.3,41.4132]
[1750055480794,0.76573,2611.7,2611.6,0.76573]
[1750055481396,2.07689,2611.8,2611.7,0.76571]
[1750055482497,1.3112,2611.8,2611.7,0.76571]
[1750055482697,3.97347,2611.9,2611.8,0.76568]
[1750055482995,3.97347,2611.9,2611.7,0.76569]
[1750055482996,0.76569,2611.8,2611.7,0.76569]
[1750055485191,3.2078,2611.9,2611.8,0.76568]
[1750055485396,9.4208,2611.9,2611.8,0.76568]
[1750055485595,10.18645,2611.9,2611.8,0.76568]
[1750055485796,9.4208,2611.9,2611.8,0.76568]
[1750055486197,10.18645,2611.9,2611.8,0.76568]
[1750055486497,0.76569,2611.8,2611.7,0.7657]
[1750055487191,9.4208,2611.9,2611.8,0.76568]
[1750055488095,24.3449,2612.0,2611.5,3.20711]
[1750055488096,0.6779,2612.0,2611.9,0.76565]
[1750055488396,6.8909,2612.0,2611.9,0.76565]
[1750055488796,7.65652,2612.0,2611.9,0.76565]
[1750055489198,6.8909,2612.0,2611.9,0.76565]
[1750055489395,0.6779,2612.0,2611.9,0.76565]
[1750055489599,6.213,2612.0,2611.7,1.91425]
[1750055489803,9.4208,2612.2,2612.0,0.76561]
[1750055489994,0.7656,2612.1,2611.9,0.76564]
[1750055490397,2.0539,2612.1,2611.9,0.76564]
[1750055490701,0.76562,2612.0,2611.9,0.76564]
[1750055491397,1.2883,2612.1,2611.8,0.6732]
[1750055491704,0.76565,2611.9,2611.8,0.6732]
[1750055491909,1.40704,2612.0,2611.8,1.43888]
[1750055492097,1.40704,2612.0,2611.9,0.76565]
[1750055492296,0.6414,2612.0,2611.9,0.76565]
[1750055492498,10.18637,2612.2,2611.8,0.6732]
[1750055492698,3.2078,2612.2,2612.1,0.76559]
[1750055493005,3.2078,2612.5,2611.9,5.12187]
[1750055493197,3.2078,2612.5,2612.4,0.7655]
[1750055494497,6.97845,2612.6,2612.4,0.7655]
[1750055494698,6.213,2612.6,2612.4,0.7655]
[1750055494897,6.97844,2612.6,2612.4,0.76549]
[1750055495104,0.7655,2612.4,2612.3,0.1877]
[1750055495304,24.4285,2612.4,2612.3,0.1877]
[1750055495702,25.71,2612.4,2612.3,0.1877]
[1750055496102,25.71,2612.4,2612.3,0.8396]
[1750055496800,25.71,2612.4,2612.3,1.60513]
[1750055496801,24.9445,2612.4,2612.3,1.60513]
[1750055497002,0.6295,2612.5,2612.4,0.7655]
[1750055497298,6.209,2612.5,2612.4,0.7655]
[1750055497704,6.209,2612.5,2612.4,1.4191]
[1750055499401,6.209,2612.5,2609.8,3.2078]
[1750055499402,3.2078,2611.8,2609.8,3.2078]
[1750055499702,16.71345,2612.5,2609.8,3.2078]
[1750055499703,3.97387,2610.5,2609.8,3.2078]
[1750055500009,6.617,2610.4,2610.0,0.76619]
[1750055500305,3.2078,2610.5,2610.1,0.76616]
[1750055500506,3.51775926,2610.8,2610.1,4.0066]
[1750055500810,0.6653,2611.0,2610.6,0.76597]
[1750055501005,9.8248,2611.1,2610.7,1.308]
[1750055501210,6.617,2611.1,2610.8,0.76588]
[1750055501509,6.617,2611.1,2610.7,5.2817]
[1750055501713,6.617,2611.1,2610.9,0.76584]
[1750055502008,3.21354614,2611.4,2610.8,1.884]
[1750055502212,3.21354614,2611.4,2611.1,0.7658]
[1750055502603,3.21354614,2611.4,2611.0,0.76582]
[1750055502808,3.21354614,2611.4,2611.2,0.76577]
[1750055503308,3.21354614,2611.4,2611.2,0.6792]
[1750055503503,0.00574614,2611.4,2611.3,8.25295504]
[1750055503708,12.3798,2612.0,2611.3,4.456]